fUST/lending_fUST_20251004
["ID","MTS","AMOUNT","RATE_DAILY","PERIOD"]
[388973407,1759552243114,-500.0,0.00024657,9]
[388973408,1759552243123,-500.0,0.00024657,9]
[388973409,1759552243133,-500.0,0.00024657,9]
[388973410,1759552243142,-1041.66666667,0.00024657,7]
[388973411,1759552243151,-500.0,0.00024657,9]
[388973412,1759552243162,-500.0,0.00024657,9]
[388973413,1759552243171,-500.0,0.00024657,9]
[388973414,1759552243180,-500.0,0.00024657,9]
[388973415,1759552243189,-500.0,0.00024657,9]
[388973416,1759552243199,-518.69,0.00024657,9]
[388973418,1759552243208,-500.0,0.00024657,9]
[388973420,1759552243217,-500.0,0.00024657,9]
[388973422,1759552243226,-484.01269547,0.00024657,9]
[388973424,1759552243236,-500.0,0.00024657,9]
[388973426,1759552243245,-863.41,0.00024657,9]
[388973428,1759552243254,-500.0,0.00024657,9]
[388973430,1759552243263,-151.0,0.00024657,7]
[388973432,1759552243272,-500.0,0.00024657,9]
[388973434,1759552243281,-500.0,0.00024657,9]
[388973436,1759552243290,-500.0,0.00024657,9]
[388973438,1759552243299,-2385.13,0.00024657,9]
[388973440,1759552243308,-500.0,0.00024657,9]
[388973442,1759552243317,-901.17,0.00024657,9]
[388973444,1759552243327,-151.0,0.00024657,7]
[388973446,1759552243336,-232.79624565,0.00024657,9]
[388973448,1759552243345,-500.0,0.00024657,9]
[388973449,1759552243355,-500.0,0.00024657,9]
[388973450,1759552243363,-151.0,0.00024657,7]
[388973451,1759552243373,-500.0,0.00024657,9]
[388973452,1759552243382,-500.0,0.00024657,9]
[388973453,1759552243391,-500.0,0.00024657,9]
[388973454,1759552243401,-500.0,0.00024657,9]
[388973455,1759552243410,-500.0,0.00024657,9]
[388973456,1759552243419,-500.0,0.00024657,9]
[388973457,1759552243428,-1118.83,0.00024657,9]
[388973458,1759552243438,-739.91,0.00024657,9]
[388973459,1759552243447,-739.91,0.00024657,9]
[388973460,1759552243457,-739.91,0.00024657,9]
[388973462,1759552243466,-739.91,0.00024657,9]
[388973464,1759552243475,-739.91,0.00024657,9]
[388973465,1759552243484,-739.91,0.00024657,9]
[388973466,1759552243494,-739.91,0.00024657,9]
[388973467,1759552243502,-739.91,0.00024657,9]
[388973468,1759552243511,-739.91,0.00024657,9]
[388973469,1759552243520,-739.91,0.00024657,9]
[388973470,1759552243529,-739.91,0.00024657,9]
[388973471,1759552243539,-739.91,0.00024657,9]
[388973472,1759552243548,-739.91,0.00024657,9]
[388973473,1759552243557,-739.91,0.00024657,9]
[388973474,1759552243566,-638.65,0.00024657,9]
[388973475,1759552243575,-500.0,0.00024657,9]
[388973476,1759552243584,-739.91,0.00024657,9]
[388973477,1759552243594,-739.91,0.00024657,9]
[388973478,1759552243603,-739.91,0.00024657,9]
[388973479,1759552243612,-739.91,0.00024657,9]
[388973480,1759552243621,-500.0,0.00024657,9]
[388973481,1759552243631,-739.91,0.00024657,9]
[388973482,1759552243641,-470.21158696,0.00024657,9]
[388973483,1759552243650,-739.91,0.00024657,9]
[388973484,1759552243660,-739.91,0.00024657,9]
[388973485,1759552243671,-739.91,0.00024657,9]
[388973486,1759552243682,-739.91,0.00024657,9]
[388973487,1759552243691,-739.91053546,0.00024657,9]
[388973488,1759552243701,-151.0,0.00024657,7]
[388973489,1759552243713,-153.813449,0.00024657,7]
[388973490,1759552243722,-500.0,0.00024657,9]
[388973491,1759552243731,-500.0,0.00024657,9]
[388973492,1759552243741,-500.0,0.00024657,9]
[388973493,1759552243750,-778.44,0.00024657,9]
[388973494,1759552243759,-500.0,0.00024657,9]
[388973495,1759552243768,-924.33,0.00024657,9]
[388973496,1759552243778,-500.0,0.00024657,9]
[388973497,1759552243787,-1485.49,0.00024657,9]
[388973498,1759552243797,-1244.21,0.00024657,9]
[388973499,1759552243866,-151.0,0.00024657,7]
[388973500,1759552243875,-500.0,0.00024657,9]
[388973501,1759552243885,-151.0,0.00024657,7]
[388973502,1759552243894,-500.0,0.00024657,9]
[388973503,1759552243903,-500.0,0.00024657,9]
[388973504,1759552243912,-500.0,0.00024657,9]
[388973505,1759552243921,-500.0,0.00024657,9]
[388973506,1759552243930,-500.0,0.00024657,9]
[388973507,1759552243939,-500.0,0.00024657,9]
[388973508,1759552243948,-500.0,0.00024657,9]
[388973509,1759552243957,-672.33,0.00024657,9]
[388973510,1759552243968,-500.0,0.00024657,9]
[388973511,1759552243977,-644.15,0.00024657,9]
[388973512,1759552243987,-500.0,0.00024657,9]
[388973513,1759552243996,-1260.08,0.00024657,9]
[388973514,1759552244006,-507.95390373,0.00024657,9]
[388973515,1759552244015,-2917.92,0.00024657,9]
[388973516,1759552244025,-500.0,0.00024657,9]
[388973517,1759552244035,-151.0,0.00024657,7]
[388973518,1759552244044,-1138.19,0.00024657,9]
[388973519,1759552244053,-151.0,0.00024657,7]
[388973520,1759552244063,-151.0,0.00024657,7]
[388973521,1759552244072,-151.0,0.00024657,7]
[388973522,1759552244081,-151.0,0.00024657,7]
[388973523,1759552244091,-500.0,0.00024657,9]
[388973524,1759552244101,-153.375003,0.00024657,7]
[388973525,1759552244111,-460.204294,0.00024657,9]
[388973526,1759552244121,-500.0,0.00024657,9]
[388973527,1759552244130,-500.0,0.00024657,9]
[388973528,1759552244139,-1055.73,0.00024657,9]
[388973529,1759552244149,-614.2833166,0.00024657,9]
[388973530,1759552244158,-500.0,0.00024657,9]
[388973531,1759552244167,-500.0,0.00024657,2]
[388973532,1759552244176,-500.0,0.00024657,9]
[388973533,1759552244185,-500.0,0.00024657,9]
[388973534,1759552244194,-500.0,0.00024657,9]
[388973535,1759552244203,-3787.08,0.00024657,9]
[388973536,1759552244213,-612.99,0.00024657,9]
[388973537,1759552244222,-500.0,0.00024657,9]
[388973538,1759552244231,-500.0,0.00024657,9]
[388973539,1759552244241,-500.0,0.00024657,9]
[388973540,1759552244250,-413.52478563,0.00024657,9]
[388973541,1759552244259,-701.04,0.00024657,9]
[388973542,1759552244268,-151.0,0.00024657,7]
[388973543,1759552244277,-500.0,0.00024657,9]
[388973544,1759552244287,-500.0,0.00024657,9]
[388973545,1759552244296,-151.0,0.00024657,7]
[388973546,1759552244305,-500.0,0.00024657,9]
[388973547,1759552244314,-500.0,0.00024657,9]
[388973548,1759552244324,-500.0,0.00024657,9]
[388973549,1759552244333,-500.0,0.00024657,9]
[388973550,1759552244342,-500.0,0.00024657,9]
[388973551,1759552244351,-500.0,0.00024657,9]
[388973552,1759552244360,-500.0,0.00024657,9]
[388973553,1759552244369,-500.0,0.00024657,9]
[388973554,1759552244378,-151.0,0.00024657,7]
[388973555,1759552244387,-500.0,0.00024657,9]
[388973556,1759552244396,-500.0,0.00024657,9]
[388973557,1759552244406,-500.0,0.00024657,9]
[388973558,1759552244415,-151.0,0.00024657,7]
[388973559,1759552244424,-296.81455088,0.00024657,9]
[388973560,1759552244433,-291.597328,0.00024657,7]
[388973561,1759552244442,-500.0,0.00024657,9]
[388973562,1759552244451,-500.0,0.00024657,9]
[388973563,1759552244461,-500.0,0.00024657,9]
[388973564,1759552244470,-595.18137705,0.00024657,9]
[388973565,1759552244479,-853.01,0.00024657,9]
[388973566,1759552244488,-486.01702292,0.00024657,9]
[388973567,1759552244497,-500.0,0.00024657,9]
[388973568,1759552244506,-500.0,0.00024657,9]
[388973569,1759552244515,-500.0,0.00024657,9]
[388973570,1759552244525,-500.0,0.00024657,9]
[388973571,1759552244535,-481.05922165,0.00024657,9]
[388973572,1759552244544,-545.55,0.00024657,9]
[388973573,1759552244553,-545.55,0.00024657,9]
[388973574,1759552244561,-545.55,0.00024657,9]
[388973575,1759552244570,-545.55,0.00024657,9]
[388973576,1759552244581,-545.55,0.00024657,9]
[388973577,1759552244590,-545.55,0.00024657,9]
[388973578,1759552244599,-545.55,0.00024657,9]
[388973579,1759552244608,-545.55,0.00024657,9]
[388973580,1759552244618,-545.55,0.00024657,9]
[388973581,1759552244627,-545.55,0.00024657,9]
[388973582,1759552244636,-500.0,0.00024657,9]
[388973583,1759552244645,-545.55,0.00024657,9]
[388973584,1759552244654,-545.55,0.00024657,9]
[388973585,1759552244664,-545.55,0.00024657,9]
[388973586,1759552244673,-545.55,0.00024657,9]
[388973587,1759552244682,-545.55,0.00024657,9]
[388973588,1759552244691,-545.55,0.00024657,9]
[388973589,1759552244700,-545.55,0.00024657,9]
[388973590,1759552244709,-500.0,0.00024657,9]
[388973591,1759552244718,-545.55,0.00024657,9]
[388973592,1759552244727,-545.55,0.00024657,9]
[388973593,1759552244736,-545.55,0.00024657,9]
[388973594,1759552244745,-500.0,0.00024657,9]
[388973595,1759552244755,-545.55,0.00024657,9]
[388973596,1759552244764,-487.24973216,0.00024657,9]
[388973597,1759552244773,-545.55,0.00024657,9]
[388973598,1759552244783,-545.55,0.00024657,9]
[388973599,1759552244793,-545.65894974,0.00024657,9]
[388973600,1759552244802,-500.0,0.00024657,9]
[388973601,1759552244811,-1503.56,0.00024657,9]
[388973602,1759552244820,-1125.42,0.00024657,9]
[388973603,1759552244829,-500.0,0.00024657,9]
[388973604,1759552244840,-453.78741108,0.00024657,9]
[388973605,1759552244849,-500.0,0.00024657,9]
[388973606,1759552244858,-500.0,0.00024657,9]
[388973607,1759552244868,-495.78442434,0.00024657,9]
[388973608,1759552244877,-645.58,0.00024657,9]
[388973609,1759552244886,-192.608986,0.00024657,7]
[388973610,1759552244896,-823.91,0.00024657,9]
[388973611,1759552244905,-1190.27,0.00024657,9]
[388973612,1759552244914,-500.0,0.00024657,9]
[388973613,1759552244923,-500.0,0.00024657,9]
[388973614,1759552244932,-487.83690224,0.00024657,9]
[388973615,1759552244942,-500.0,0.00024657,9]
[388973616,1759552244952,-610.13,0.00024657,9]
[388973617,1759552244962,-533.24,0.00024657,9]
[388973618,1759552244971,-500.0,0.00024657,9]
[388973619,1759552244980,-151.0,0.00024657,7]
[388973620,1759552244989,-1441.78,0.00024657,9]
[388973621,1759552244998,-578.23,0.00024657,9]
[388973622,1759552245007,-2034.55,0.00024657,9]
[388973623,1759552245017,-500.0,0.00024657,9]
[388973624,1759552245026,-500.0,0.00024657,9]
[388973625,1759552245036,-485.23502919,0.00024657,9]
[388973626,1759552245045,-151.0,0.00024657,7]
[388973627,1759552245054,-151.0,0.00024657,7]
[388973628,1759552245063,-1400.04,0.00024657,9]
[388973629,1759552245073,-151.0,0.00024657,7]
[388973630,1759552245085,-151.0,0.00024657,7]
[388973631,1759552245094,-151.0,0.00024657,7]
[388973632,1759552245103,-165.175943,0.00024657,7]
[388973633,1759552245112,-151.0,0.00024657,7]
[388973634,1759552245121,-151.0,0.00024657,7]
[388973635,1759552245131,-151.0,0.00024657,7]
[388973636,1759552245140,-500.0,0.00024657,9]
[388973637,1759552245149,-500.0,0.00024657,9]
[388973638,1759552245158,-1924.79,0.00024657,9]
[388973639,1759552245168,-500.0,0.00024657,9]
[388973640,1759552245177,-1656.76,0.00024657,9]
[388973641,1759552245186,-500.0,0.00024657,9]
[388973642,1759552245195,-500.0,0.00024657,9]
[388973643,1759552245205,-500.0,0.00024657,9]
[388973644,1759552245214,-500.0,0.00024657,9]
[388973645,1759552245223,-500.0,0.00024657,9]
[388973646,1759552245232,-500.0,0.00024657,9]
[388973647,1759552245241,-485.97070948,0.00024657,9]
[388973648,1759552245251,-500.0,0.00024657,9]
[388973649,1759552245259,-500.0,0.00024657,9]
[388973650,1759552245269,-485.7486831,0.00024657,9]
[388973651,1759552245278,-500.0,0.00024657,9]
[388973652,1759552245289,-1981.39,0.00024657,9]
[388973653,1759552245299,-774.29,0.00024657,9]
[388973654,1759552245308,-827.72,0.00024657,9]
[388973655,1759552245317,-2166.99,0.00024657,9]
[388973656,1759552245327,-771.59,0.00024657,9]
[388973657,1759552245336,-151.0,0.00024657,7]
[388973658,1759552245346,-440.49986315,0.00024657,9]
[388973659,1759552245355,-562.88,0.00024657,9]
[388973660,1759552245365,-500.0,0.00024657,9]
[388973661,1759552245375,-454.95496589,0.00024657,9]
[388973662,1759552245384,-4064.82,0.00024657,9]
[388973663,1759552245393,-4016.92,0.00024657,9]
[388973664,1759552245403,-500.0,0.00024657,9]
[388973665,1759552245412,-500.0,0.00024657,9]
[388973666,1759552245421,-500.0,0.00024657,9]
[388973667,1759552245430,-500.0,0.00024657,9]
[388973668,1759552245440,-1537.81,0.00024657,9]
[388973669,1759552245449,-500.0,0.00024657,9]
[388973670,1759552245459,-151.0,0.00024657,7]
[388973671,1759552245468,-151.0,0.00024657,7]
[388973672,1759552245478,-500.0,0.00024657,9]
[388973673,1759552245487,-500.0,0.00024657,9]
[388973674,1759552245497,-151.0,0.00024657,7]
[388973675,1759552245506,-151.0,0.00024657,7]
[388973676,1759552245516,-500.0,0.00024657,9]
[388973677,1759552245525,-500.0,0.00024657,9]
[388973678,1759552245535,-209.510792,0.00024657,7]
[388973679,1759552245544,-511.34,0.00024657,9]
[388973680,1759552245554,-500.0,0.00024657,9]
[388973681,1759552245566,-522.15,0.00024657,9]
[388973682,1759552245577,-209.510792,0.00024657,7]
[388973683,1759552245587,-151.0,0.00024657,7]
[388973684,1759552245596,-209.510792,0.00024657,7]
[388973685,1759552245605,-151.0,0.00024657,7]
[388973686,1759552245615,-500.0,0.00024657,9]
[388973687,1759552245625,-209.510792,0.00024657,7]
[388973688,1759552245635,-151.0,0.00024657,7]
[388973689,1759552245645,-170.708088,0.00024657,7]
[388973690,1759552245654,-500.0,0.00024657,9]
[388973691,1759552245664,-500.0,0.00024657,9]
[388973692,1759552245674,-500.0,0.00024657,9]
[388973693,1759552245683,-4304.15,0.00024657,9]
[388973694,1759552245693,-500.0,0.00024657,9]
[388973695,1759552245703,-500.0,0.00024657,9]
[388973696,1759552245713,-576.56,0.00024657,9]
[388973697,1759552245722,-2200.51,0.00024657,9]
[388973698,1759552245732,-257.66394107,0.00024657,9]
[388973699,1759552245741,-500.0,0.00024657,9]
[388973700,1759552245751,-500.0,0.00024657,9]
[388973701,1759552245760,-507.60738747,0.00024657,9]
[388973702,1759552245770,-151.0,0.00024657,7]
[388973703,1759552245781,-154.170768,0.00024657,7]
[388973704,1759552245790,-2562.74,0.00024657,9]
[388973705,1759552245801,-500.0,0.00024657,9]
[388973706,1759552245810,-500.0,0.00024657,9]
[388973707,1759552245820,-153.415777,0.00024657,7]
[388973708,1759552245830,-500.0,0.00024657,9]
[388973709,1759552245840,-500.0,0.00024657,9]
[388973710,1759552245849,-500.0,0.00024657,9]
[388973711,1759552245860,-500.0,0.00024657,9]
[388973712,1759552245869,-832.05,0.00024657,9]
[388973713,1759552245879,-500.0,0.00024657,9]
[388973714,1759552245888,-861.85,0.00024657,9]
[388973715,1759552245898,-483.98585311,0.00024657,9]
[388973716,1759552245907,-500.0,0.00024657,9]
[388973717,1759552245916,-500.0,0.00024657,7]
[388973718,1759552245926,-488.59497018,0.00024657,9]
[388973719,1759552245936,-500.0,0.00024657,9]
[388973720,1759552245946,-151.0,0.00024657,7]
[388973721,1759552245956,-500.0,0.00024657,9]
[388973723,1759552245966,-500.0,0.00024657,9]
[388973724,1759552245976,-500.0,0.00024657,9]
[388973725,1759552245986,-500.0,0.00024657,9]
[388973726,1759552245995,-500.0,0.00024657,9]
[388973727,1759552246005,-1182.22,0.00024657,9]
[388973728,1759552246015,-500.0,0.00024657,9]
[388973729,1759552246025,-500.0,0.00024657,9]
[388973730,1759552246035,-500.0,0.00024657,9]
[388973731,1759552246044,-500.0,0.00024657,9]
[388973732,1759552246054,-1139.13,0.00024657,9]
[388973733,1759552246063,-500.0,0.00024657,9]
[388973734,1759552246073,-500.0,0.00024657,9]
[388973735,1759552246087,-2051.75,0.00024657,9]
[388973736,1759552246096,-500.0,0.00024657,9]
[388973737,1759552246106,-546.58,0.00024657,9]
[388973738,1759552246115,-1259.4,0.00024657,9]
[388973739,1759552246127,-152.118509,0.00024657,7]
[388973740,1759552246136,-506.135936,0.00024657,7]
[388973741,1759552246145,-500.0,0.00024657,9]
[388973742,1759552246155,-813.68,0.00024657,9]
[388973743,1759552246165,-506.135936,0.00024657,7]
[388973744,1759552246174,-500.0,0.00024657,9]
[388973745,1759552246183,-481.87974871,0.00024657,9]
[388973746,1759552246193,-506.135936,0.00024657,7]
[388973747,1759552246203,-500.0,0.00024657,9]
[388973748,1759552246212,-506.135936,0.00024657,7]
[388973750,1759552246221,-500.0,0.00024657,9]
[388973751,1759552246230,-500.0,0.00024657,9]
[388973752,1759552246239,-151.0,0.00024657,7]
[388973753,1759552246249,-151.0,0.00024657,7]
[388973754,1759552246258,-151.0,0.00024657,7]
[388973755,1759552246268,-151.0,0.00024657,7]
[388973756,1759552246277,-556.05,0.00024657,9]
[388973757,1759552246287,-1405.7,0.00024657,9]
[388973758,1759552246297,-3066.37,0.00024657,9]
[388973759,1759552246307,-500.0,0.00024657,9]
[388973760,1759552246316,-220.592389,0.00024657,7]
[388973761,1759552246326,-151.0,0.00024657,7]
[388973763,1759552246335,-151.0,0.00024657,7]
[388973765,1759552246345,-500.0,0.00024657,9]
[388973766,1759552246355,-151.0,0.00024657,7]
[388973768,1759552246365,-151.0,0.00024657,7]
[388973769,1759552246374,-500.0,0.00024657,9]
[388973770,1759552246384,-154.198105,0.00024657,7]
[388973772,1759552246393,-199.068904,0.00024657,7]
[388973773,1759552246404,-151.0,0.00024657,7]
[388973774,1759552246413,-151.0,0.00024657,7]
[388973775,1759552246422,-151.0,0.00024657,7]
[388973776,1759552246432,-235.53616,0.00024657,7]
[388973777,1759552246441,-500.0,0.00024657,9]
[388973778,1759552246451,-500.0,0.00024657,9]
[388973779,1759552246460,-2556.15,0.00024657,9]
[388973780,1759552246470,-500.0,0.00024657,9]
[388973781,1759552246480,-151.0,0.00024657,7]
[388973782,1759552246489,-151.0,0.00024657,7]
[388973783,1759552246502,-151.0,0.00024657,7]
[388973784,1759552246512,-151.0,0.00024657,7]
[388973785,1759552246521,-500.0,0.00024657,9]
[388973786,1759552246531,-1980.87,0.00024657,9]
[388973787,1759552246540,-500.0,0.00024657,9]
[388973788,1759552246550,-152.79694186,0.00024657,7]
[388973789,1759552246559,-500.0,0.00024657,9]
[388973790,1759552246569,-500.0,0.00024657,9]
[388973791,1759552246578,-500.0,0.00024657,9]
[388973792,1759552246587,-505.27,0.00024657,9]
[388973793,1759552246596,-1254.95,0.00024657,9]
[388973795,1759552246606,-500.0,0.00024657,9]
[388973796,1759552246615,-500.0,0.00024657,9]
[388973797,1759552246625,-500.0,0.00024657,9]
[388973798,1759552246634,-151.0,0.00024657,7]
[388973799,1759552246644,-151.0,0.00024657,7]
[388973800,1759552246653,-1333.55,0.00024657,9]
[388973801,1759552246663,-500.0,0.00024657,9]
[388973802,1759552246672,-2922.08,0.00024657,9]
[388973803,1759552246682,-160.208963,0.00024657,7]
[388973804,1759552246691,-500.0,0.00024657,9]
[388973805,1759552246701,-956.2,0.00024657,9]
[388973806,1759552246711,-500.0,0.00024657,9]
[388973807,1759552246720,-500.0,0.00024657,9]
[388973808,1759552246730,-500.0,0.00024657,9]
[388973809,1759552246739,-500.0,0.00024657,9]
[388973810,1759552246749,-500.0,0.00024657,9]
[388973811,1759552246758,-500.0,0.00024657,9]
[388973812,1759552246767,-1625.39,0.00024657,9]
[388973813,1759552246776,-578.2,0.00024657,9]
[388973814,1759552246786,-500.0,0.00024657,9]
[388973815,1759552246795,-500.0,0.00024657,9]
[388973816,1759552246805,-500.0,0.00024657,9]
[388973817,1759552246815,-737.65,0.00024657,9]
[388973818,1759552246824,-500.0,0.00024657,9]
[388973819,1759552246834,-616.71,0.00024657,9]
[388973820,1759552246843,-266.54189113,0.00024657,9]
[388973821,1759552246853,-500.0,0.00024657,9]
[388973822,1759552246862,-600.0,0.00024657,9]
[388973823,1759552246872,-500.0,0.00024657,9]
[388973824,1759552246881,-572.83,0.00024657,9]
[388973825,1759552246891,-500.0,0.00024657,9]
[388973826,1759552246901,-151.0,0.00024657,7]
[388973827,1759552246911,-500.0,0.00024657,9]
[388973828,1759552246920,-151.0,0.00024657,7]
[388973829,1759552246929,-151.0,0.00024657,7]
[388973830,1759552246939,-151.0,0.00024657,7]
[388973831,1759552246948,-151.0,0.00024657,7]
[388973832,1759552246958,-500.0,0.00024657,9]
[388973833,1759552246967,-151.0,0.00024657,7]
[388973834,1759552246977,-2322.13,0.00024657,9]
[388973835,1759552246986,-500.0,0.00024657,9]
[388973836,1759552246995,-500.0,0.00024657,9]
[388973837,1759552247005,-489.31854265,0.00024657,9]
[388973838,1759552247014,-151.0,0.00024657,7]
[388973839,1759552247024,-151.0,0.00024657,7]
[388973840,1759552247034,-762.0,0.00024657,9]
[388973841,1759552247043,-151.0,0.00024657,7]
[388973842,1759552247054,-151.0,0.00024657,7]
[388973843,1759552247063,-500.0,0.00024657,9]
[388973844,1759552247074,-500.0,0.00024657,9]
[388973845,1759552247084,-151.0,0.00024657,7]
[388973846,1759552247093,-151.0,0.00024657,7]
[388973847,1759552247103,-151.0,0.00024657,7]
[388973848,1759552247112,-500.0,0.00024657,9]
[388973849,1759552247122,-151.0,0.00024657,7]
[388973850,1759552247131,-500.0,0.00024657,9]
[388973851,1759552247141,-151.0,0.00024657,7]
[388973852,1759552247150,-151.0,0.00024657,7]
[388973853,1759552247159,-151.0,0.00024657,7]
[388973854,1759552247169,-151.0,0.00024657,7]
[388973855,1759552247179,-249.046014,0.00024657,7]
[388973856,1759552247190,-1382.13,0.00024657,9]
[388973857,1759552247200,-1483.33,0.00024657,9]
[388973858,1759552247209,-5464.98,0.00024657,9]
[388973859,1759552247219,-1628.92,0.00024657,9]
[388973860,1759552247229,-3976.04,0.00024657,9]
[388973861,1759552247240,-500.0,0.00024657,9]
[388973862,1759552247250,-500.0,0.00024657,9]
[388973863,1759552247261,-500.0,0.00024657,9]
[388973864,1759552247271,-500.0,0.00024657,9]
[388973865,1759552247281,-651.17,0.00024657,9]
[388973866,1759552247290,-793.14,0.00024657,9]
[388973867,1759552247300,-500.0,0.00024657,9]
[388973868,1759552247309,-2034.82,0.00024657,9]
[388973869,1759552247319,-2767.1,0.00024657,9]
[388973870,1759552247328,-1656.1,0.00024657,9]
[388973871,1759552247338,-1069.0,0.00024657,9]
[388973872,1759552247347,-500.0,0.00024657,9]
[388973873,1759552247358,-500.0,0.00024657,9]
[388973874,1759552247369,-682.82,0.00024657,9]
[388973875,1759552247380,-1397.27,0.00024657,9]
[388973876,1759552247391,-1083.4,0.00024657,9]
[388973877,1759552247402,-481.4305831,0.00024657,9]
[388973878,1759552247411,-542.48,0.00024657,9]
[388973879,1759552247420,-500.0,0.00024657,9]
[388973880,1759552247430,-500.0,0.00024657,9]
[388973881,1759552247439,-685.9,0.00024657,9]
[388973882,1759552247613,-500.0,0.00024657,9]
[388973883,1759552247623,-757.23,0.00024657,9]
[388973884,1759552247632,-500.0,0.00024657,9]
[388973885,1759552247641,-500.0,0.00024657,9]
[388973886,1759552247650,-4495.96,0.00024657,9]
[388973887,1759552247659,-4495.96,0.00024657,9]
[388973888,1759552247667,-4495.96,0.00024657,9]
[388973889,1759552247676,-500.0,0.00024657,9]
[388973890,1759552247685,-4495.96,0.00024657,9]
[388973891,1759552247695,-4495.96,0.00024657,9]
[388973892,1759552247703,-4495.96,0.00024657,9]
[388973893,1759552247712,-500.0,0.00024657,9]
[388973894,1759552247721,-4495.96,0.00024657,9]
[388973895,1759552247731,-4495.96,0.00024657,9]
[388973896,1759552247740,-2378.52,0.00024657,9]
[388973897,1759552247749,-3223.31,0.00024657,9]
[388973898,1759552247759,-4495.96,0.00024657,9]
[388973899,1759552247768,-4495.96,0.00024657,9]
[388973900,1759552247778,-4495.96,0.00024657,9]
[388973901,1759552247788,-4495.96,0.00024657,9]
[388973902,1759552247798,-4495.96,0.00024657,9]
[388973903,1759552247809,-161.337219,0.00024657,7]
[388973904,1759552247819,-4495.96,0.00024657,9]
[388973905,1759552247831,-4495.96,0.00024657,9]
[388973906,1759552247841,-4495.96,0.00024657,9]
[388973907,1759552247851,-4495.96,0.00024657,9]
[388973908,1759552247860,-4495.96,0.00024657,9]
[388973909,1759552247870,-4495.96,0.00024657,9]
[388973910,1759552247879,-4495.96,0.00024657,9]
[388973911,1759552247889,-4495.96,0.00024657,9]
[388973912,1759552247898,-4495.96,0.00024657,9]
[388973913,1759552247907,-4495.96,0.00024657,9]
[388973914,1759552247916,-4496.00775841,0.00024657,9]
[388973915,1759552247926,-500.0,0.00024657,9]
[388973916,1759552247935,-1996.29,0.00024657,9]
[388973917,1759552247944,-500.0,0.00024657,9]
[388973918,1759552247953,-500.0,0.00024657,9]
[388973919,1759552247962,-500.0,0.00024657,9]
[388973920,1759552247972,-500.0,0.00024657,9]
[388973921,1759552247982,-942.13,0.00024657,9]
[388973922,1759552247991,-1714.22,0.00024657,9]
[388973923,1759552248000,-609.17,0.00024657,9]
[388973924,1759552248009,-500.0,0.00024657,9]
[388973925,1759552248019,-6107.45,0.00024657,9]
[388973926,1759552248028,-511.92,0.00024657,9]
[388973927,1759552248037,-151.0,0.00024657,7]
[388973928,1759552248047,-713.29,0.00024657,9]
[388973929,1759552248055,-151.0,0.00024657,7]
[388973930,1759552248064,-4732.54,0.00024657,9]
[388973931,1759552248074,-151.10690858,0.00024657,2]